bitfinex/quotes_SOLUSD_20230101
["timestamp","ask_amount","ask_price","bid_price","bid_amount"]
[1672560998164,40.0,9.766,9.7568,40.0]
[1672560998371,96.88,9.7659,9.7571,40.0]
[1672560998567,96.88,9.7659,9.7573,307.9]
[1672560998778,96.88,9.7659,9.7574,76.95]
[1672560998984,40.0,9.7657,9.7574,76.95]
[1672560999201,20.0,9.7656,9.7574,76.95]
[1672560999848,20.0,9.7656,9.7571,40.0]
[1672561000043,20.0,9.7656,9.7573,307.9]
[1672561000257,20.0,9.7656,9.7576,40.0]
[1672561000459,20.0,9.7656,9.7579,40.0]
[1672561000674,20.0,9.7656,9.7581,307.9]
[1672561001007,20.0,9.7656,9.7582,384.84]
[1672561001193,20.0,9.7656,9.7582,307.9]
[1672561001401,40.0,9.7655,9.7582,307.9]
[1672561001617,20.0,9.7656,9.7582,307.9]
[1672561001840,20.0,9.7656,9.7583,116.94]
[1672561002154,24.0887,9.7655,9.7571,40.0]
[1672561002367,20.0,9.7654,9.7573,40.0]
[1672561002680,20.0,9.7654,9.7572,384.85]
[1672561002681,20.0,9.7654,9.7574,76.95]
[1672561002872,20.0,9.7654,9.7574,40.0]
[1672561003083,20.0,9.7654,9.7575,76.95]
[1672561003301,20.0,9.7654,9.7576,347.9]
[1672561003521,20.0,9.7654,9.7579,40.0]
[1672561003726,20.0,9.7654,9.7581,307.9]
[1672561003920,20.0,9.7654,9.7582,76.94]
[1672561004993,20.0,9.7654,9.7576,40.0]
[1672561005189,20.0,9.7654,9.7578,307.9]
[1672561005400,20.0,9.7654,9.758,307.9]
[1672561005623,20.0,9.7654,9.7582,307.9]
[1672561005831,22.5598,9.7653,9.7583,76.94]
[1672561006042,20.0,9.7652,9.7583,76.94]
[1672561006787,40.0,9.7651,9.7583,76.94]
[1672561006975,20.0,9.765,9.7571,40.0]
[1672561007187,20.0,9.765,9.7573,307.9]
[1672561007397,22.5598,9.7652,9.7571,40.0]
[1672561007398,20.0,9.7651,9.7575,307.9]
[1672561007615,20.0,9.7651,9.7577,307.9]
[1672561007818,20.0,9.7651,9.7578,76.95]
[1672561008460,40.0,9.765,9.7578,76.95]
[1672561008671,20.0,9.7649,9.7578,76.95]
[1672561008882,20.0,9.7649,9.7572,384.85]
[1672561009390,20.0,9.7649,9.7573,40.0]
[1672561009596,20.0,9.7649,9.7575,40.0]
[1672561009815,20.0,9.7651,9.7576,76.95]
[1672561010328,20.0,9.7651,9.7574,76.95]
[1672561010543,20.0,9.7651,9.7573,40.0]
[1672561010754,40.0,9.765,9.7574,76.95]
[1672561010970,20.0,9.7649,9.7573,76.95]
[1672561011177,20.0,9.7649,9.7566,76.95]
[1672561011390,20.0,9.7649,9.7567,40.0]
[1672561011598,20.0,9.7649,9.7568,76.95]
[1672561012026,20.0,9.765,9.7566,76.95]
[1672561012230,20.0,9.765,9.7568,40.0]
[1672561012445,43.109,9.765,9.757,307.9]
[1672561012764,43.109,9.765,9.7572,307.9]
[1672561012976,43.109,9.765,9.7573,424.85]
[1672561014885,43.109,9.765,9.7573,76.95]
[1672561015194,43.109,9.765,9.757,40.0]
[1672561015415,43.109,9.765,9.7572,40.0]
[1672561015604,43.109,9.765,9.7573,76.95]
[1672561015817,43.109,9.765,9.7572,40.0]
[1672561016025,43.109,9.765,9.7573,76.95]
[1672561016446,40.0,9.7649,9.7571,76.95]
[1672561016655,20.0,9.7648,9.7566,76.95]
[1672561016871,40.0,9.7647,9.7566,76.95]
[1672561017083,20.0,9.7646,9.7566,76.95]
[1672561017936,44.9845,9.7648,9.7566,76.95]
[1672561018134,44.9845,9.7648,9.7567,40.0]
[1672561018457,44.9845,9.7648,9.757,40.0]
[1672561018644,152.75479248,9.7732,9.7572,307.9]
[1672561018854,20.0,9.773,9.7574,307.9]
[1672561019064,60.0,9.7731,9.7576,347.9]
[1672561019289,40.0,9.7728,9.7579,40.0]
[1672561019503,96.83,9.7727,9.7581,307.9]
[1672561019705,40.0,9.7726,9.7583,307.9]
[1672561019917,40.0,9.7724,9.7586,40.0]
[1672561020128,76.83,9.7723,9.7588,307.9]
[1672561020341,40.0,9.7722,9.7591,40.0]
[1672561020552,76.83,9.7721,9.7592,384.83]
[1672561020762,40.0,9.772,9.7593,40.0]
[1672561021085,40.0,9.7718,9.7594,76.93]
[1672561021277,40.0,9.7716,9.7595,40.0]
[1672561021486,40.0,9.7714,9.7597,40.0]
[1672561021699,76.84,9.7713,9.7599,40.0]
[1672561021905,40.0,9.7712,9.76,76.93]
[1672561022124,76.84,9.7711,9.76,233.8376]
[1672561022338,40.0,9.771,9.7601,40.0]
[1672561022552,76.84,9.7709,9.7602,76.93]
[1672561022755,40.0,9.7708,9.7602,244.5339]
[1672561022956,76.84,9.7707,9.7602,244.5339]
[1672561023167,40.0,9.7706,9.7603,40.0]
[1672561023391,40.0,9.7704,9.7605,40.0]
[1672561023606,76.85,9.7703,9.7606,76.92]
[1672561023921,40.0,9.7702,9.7607,40.0]
[1672561024113,40.0,9.77,9.7608,76.92]
[1672561024317,40.0,9.7698,9.7608,76.92]
[1672561024529,76.85,9.7697,9.7608,76.92]
[1672561024752,40.0,9.7696,9.7609,23.3706]
[1672561024970,40.0,9.7694,9.761,76.92]
[1672561025387,40.0,9.7694,9.7611,22.687]
[1672561025597,40.0,9.7694,9.7612,76.92]
[1672561025797,40.0,9.7692,9.7612,76.92]
[1672561026008,40.0,9.7692,9.7613,22.687]
[1672561026223,40.0,9.7692,9.7614,76.92]
[1672561026430,40.0,9.7694,9.7614,76.92]
[1672561026634,76.85,9.7693,9.7615,22.687]
[1672561026848,76.85,9.7695,9.7616,116.92]
[1672561027286,76.85,9.7695,9.7617,22.687]
[1672561027597,40.0,9.7696,9.7617,22.687]
[1672561027806,40.0,9.7696,9.7618,22.687]
[1672561027807,40.0,9.7694,9.7618,22.687]
[1672561027998,40.0,9.7692,9.7618,22.687]
[1672561028848,76.85,9.7693,9.7618,22.687]
[1672561029053,40.0,9.7696,9.7618,22.687]
[1672561029280,76.85,9.7695,9.7618,22.687]
[1672561029474,40.0,9.7694,9.7618,22.687]
[1672561029686,76.85,9.7693,9.7618,22.687]
[1672561030329,76.85,9.7703,9.7619,76.91]
[1672561030538,76.85,9.7705,9.762,40.0]
[1672561030737,40.0,9.7704,9.7621,76.91]
[1672561030949,40.0,9.7704,9.7619,76.91]
[1672561031175,40.0,9.7704,9.7619,99.776]
[1672561031680,40.0,9.7704,9.762,24.3483]
[1672561031885,40.0,9.7704,9.7621,76.91]
[1672561032303,40.0,9.7704,9.7622,24.3483]
[1672561032514,40.0,9.7704,9.7623,76.91]
[1672561032956,40.0,9.7704,9.7624,24.3483]
[1672561033151,40.0,9.7704,9.7625,76.91]
[1672561033573,76.85,9.7705,9.7626,24.3483]
[1672561034095,76.85,9.7705,9.7627,24.3483]
[1672561034830,76.85,9.7705,9.7628,23.5668]
[1672561035267,40.0,9.771,9.7628,23.5668]
[1672561035476,40.0,9.7708,9.7628,23.5668]
[1672561035794,40.0,9.7706,9.7628,23.5668]
[1672561036007,40.0,9.7706,9.7629,23.5668]
[1672561036008,40.0,9.7704,9.7629,23.5668]
[1672561036204,76.85,9.7703,9.7629,23.5668]
[1672561036408,40.0,9.7702,9.7629,23.5668]
[1672561036614,40.0,9.77,9.7629,23.5668]
[1672561036825,76.85,9.7699,9.7629,23.5668]
[1672561037367,40.0,9.7708,9.7629,23.5668]
[1672561037575,40.0,9.7706,9.763,23.5668]
[1672561037782,76.85,9.7705,9.763,23.5668]
[1672561037989,40.0,9.7704,9.763,23.5668]
[1672561038205,40.0,9.7702,9.763,23.5668]
[1672561038415,40.0,9.77,9.763,23.5668]
[1672561038623,76.85,9.7699,9.763,23.5668]
[1672561039152,40.0,9.7698,9.763,23.5668]
[1672561039353,40.0,9.7696,9.763,23.5668]
[1672561039699,40.0,9.7694,9.763,23.5668]
[1672561039891,76.85,9.7693,9.763,23.5668]
[1672561040201,40.0,9.7692,9.763,23.5668]
[1672561040414,40.0,9.769,9.763,23.5668]
[1672561040733,40.0,9.7688,9.763,23.5668]
[1672561040941,40.0,9.7686,9.763,23.5668]
[1672561041136,76.86,9.7685,9.763,23.5668]
[1672561041672,40.0,9.7684,9.763,23.5668]
[1672561041884,40.0,9.7682,9.763,23.5668]
[1672561043478,76.86,9.7683,9.763,23.5668]
[1672561043683,40.0,9.7686,9.763,23.5668]
[1672561043899,40.0,9.7684,9.763,23.5668]
[1672561044103,76.86,9.7683,9.763,23.5668]
[1672561044511,40.0,9.7684,9.763,23.5668]
[1672561046106,40.0,9.7686,9.763,23.5668]
[1672561046320,40.0,9.7684,9.763,23.5668]
[1672561046523,76.86,9.7683,9.763,23.5668]
[1672561046844,40.0,9.7682,9.763,23.5668]
[1672561048835,40.0,9.7684,9.7599,76.93]
[1672561049050,40.0,9.7684,9.7548,24.9136]
[1672561049051,76.79712618,9.7653,9.7548,24.9136]
[1672561049258,40.0,9.768,9.7548,24.9136]
[1672561049259,100.42152618,9.7652,9.7551,40.0]
[1672561049463,40.0,9.765,9.7553,307.9]
[1672561049783,40.0,9.7648,9.7554,76.96]
[1672561049998,40.0,9.7646,9.7554,76.96]
[1672561050184,20.0,9.7645,9.7555,40.0]
[1672561050396,20.0,9.7645,9.7557,40.0]
[1672561050610,40.0,9.7643,9.7558,76.96]
[1672561050822,20.0,9.7642,9.7549,76.97]
[1672561051037,20.0,9.7642,9.755,347.9]
[1672561051253,24.627,9.7641,9.7553,40.0]
[1672561051448,20.0,9.764,9.7554,76.96]
[1672561051871,24.627,9.7639,9.7553,384.87]
[1672561052076,20.0,9.7638,9.7554,40.0]
[1672561052303,20.0,9.7638,9.7556,40.0]
[1672561052501,44.627,9.7638,9.7557,76.96]
[1672561053247,44.627,9.7638,9.7522,40.0]
[1672561053248,76.79712618,9.7585,9.7354,170.43185967]
[1672561053457,305.50958496,9.7622,9.7308,188.48152711]
[1672561053458,96.94,9.7584,9.7456,4.68624424]
[1672561053674,96.94,9.7584,9.7456,2.13216505]
[1672561053675,40.0,9.7583,9.7456,2.13216505]
[1672561053874,96.94,9.7582,9.7421,240.1457]
[1672561054088,40.0,9.7581,9.7422,116.1933]
[1672561054311,40.0,9.7579,9.7423,384.97]
[1672561054524,40.0,9.7577,9.7424,40.0]
[1672561054718,76.95,9.7576,9.7426,40.0]
[1672561055051,49.0764,9.7578,9.7429,40.0]
[1672561055256,40.0,9.7619,9.7431,307.9]
[1672561055445,76.91,9.7618,9.7434,40.0]
[1672561055656,40.0,9.7617,9.7436,307.9]
[1672561055867,76.92,9.7616,9.7438,307.9]
[1672561056189,76.92,9.7616,9.7437,137.06]
[1672561056190,76.91,9.7618,9.7441,40.0]
[1672561056410,40.0,9.7645,9.7444,40.0]
[1672561056730,40.0,9.7643,9.7447,40.0]
[1672561056931,40.0,9.7641,9.745,40.0]
[1672561057135,40.0,9.7641,9.7453,40.0]
[1672561057136,40.0,9.7639,9.7453,40.0]
[1672561057340,76.9,9.7638,9.7455,307.9]
[1672561057561,40.0,9.7637,9.7458,40.0]
[1672561057765,76.9,9.7636,9.7461,40.0]
[1672561057989,60.0,9.7635,9.7463,307.9]
[1672561058185,60.0,9.7635,9.7462,97.04]
[1672561058186,40.0,9.7633,9.7466,40.0]
[1672561058398,40.0,9.7631,9.7469,40.0]
[1672561058617,96.9,9.763,9.7471,307.9]
[1672561058826,40.0,9.7629,9.7473,307.9]
[1672561059046,40.0,9.7629,9.7475,347.9]
[1672561059047,40.0,9.7627,9.7475,347.9]
[1672561059356,40.0,9.7625,9.7478,40.0]
[1672561059551,40.0,9.7623,9.7481,40.0]
[1672561059761,76.91,9.7622,9.7483,307.9]
[1672561059972,40.0,9.7621,9.7485,307.9]
[1672561060193,40.0,9.7619,9.7488,40.0]
[1672561060381,40.0,9.7617,9.7491,40.0]
[1672561060598,76.92,9.7616,9.7493,307.9]
[1672561060810,40.0,9.7615,9.7495,307.9]
[1672561061020,40.0,9.7613,9.7498,40.0]
[1672561061234,40.0,9.7611,9.75,307.9]
[1672561061561,40.0,9.7609,9.7503,40.0]
[1672561061761,40.0,9.7607,9.7506,40.0]
[1672561061962,76.92,9.7606,9.7508,307.9]
[1672561062176,40.0,9.7605,9.7511,40.0]
[1672561062514,40.0,9.7603,9.7513,307.9]
[1672561062700,40.0,9.7601,9.7514,77.0]
[1672561062911,40.0,9.7601,9.7512,77.0]
[1672561063455,40.0,9.7601,9.7513,307.9]
[1672561063649,40.0,9.7601,9.7514,77.0]
[1672561064604,76.92,9.7604,9.7516,40.0]
[1672561064807,152.75479248,9.7717,9.7518,307.9]
[1672561065016,20.0,9.7641,9.752,347.9]
[1672561065218,67.1785,9.7641,9.7523,40.0]
[1672561065426,67.1785,9.7641,9.7525,307.9]
[1672561065653,67.1785,9.7641,9.7528,40.0]
[1672561065860,67.1785,9.7641,9.7531,40.0]
[1672561066185,67.1785,9.7641,9.7534,40.0]
[1672561066496,67.1785,9.7641,9.7537,40.0]
[1672561066688,67.1785,9.7641,9.754,40.0]
[1672561066900,67.1785,9.7641,9.7542,307.9]
[1672561067110,67.1785,9.7641,9.7544,307.9]
[1672561067428,67.1785,9.7641,9.7547,40.0]
[1672561067648,67.1785,9.7641,9.7549,307.9]
[1672561067971,67.1785,9.7641,9.7551,307.9]
[1672561068280,67.1785,9.7641,9.755,116.97]
[1672561068281,67.1785,9.7641,9.7553,307.9]
[1672561068476,67.1785,9.7641,9.7555,307.9]
[1672561068688,67.1785,9.7641,9.7558,40.0]
[1672561068897,67.1785,9.7641,9.7561,40.0]
[1672561069108,67.1785,9.7641,9.7563,307.9]
[1672561069331,67.1785,9.7641,9.7564,116.96]
[1672561069636,67.1785,9.7641,9.7565,40.0]
[1672561069836,20.0,9.7641,9.7567,40.0]
[1672561070053,20.0,9.7641,9.7569,40.0]
[1672561070275,20.0,9.7641,9.757,76.95]
[1672561070487,20.0,9.7641,9.7571,40.0]
[1672561070678,20.0,9.7641,9.7573,40.0]
[1672561070892,20.0,9.7641,9.7571,40.0]
[1672561070893,20.0,9.7641,9.7574,76.95]
[1672561071107,20.0,9.7641,9.7572,76.95]
[1672561071750,20.0,9.7641,9.7571,40.0]
[1672561072892,20.0,9.7641,9.7571,307.9]
[1672561073229,20.0,9.7641,9.7573,307.9]
[1672561073423,20.0,9.7641,9.7572,116.95]
[1672561073424,20.0,9.7641,9.7574,116.95]
[1672561075002,20.0,9.7641,9.7576,40.0]
[1672561075227,20.0,9.7641,9.7577,76.95]
[1672561075414,20.0,9.7641,9.7578,40.0]
[1672561075619,20.0,9.7641,9.7581,40.0]
[1672561075831,20.0,9.7641,9.7583,307.9]
[1672561076045,20.0,9.764,9.7585,40.0]
[1672561076360,20.0,9.7665,9.7588,40.0]
[1672561076570,20.0,9.7667,9.7588,40.0]
[1672561077112,20.0,9.7667,9.7591,40.0]
[1672561077426,20.0,9.7667,9.7594,40.0]
[1672561080668,20.0,9.7667,9.7597,40.0]
[1672561080872,20.0,9.7667,9.76,40.0]
[1672561081092,20.0,9.7667,9.7602,307.9]
[1672561081301,47.9252,9.7668,9.7604,40.0]
[1672561081513,76.84,9.7708,9.7606,307.9]
[1672561081723,122.7583,9.7755,9.7608,307.9]
[1672561081950,20.0,9.7754,9.761,307.9]
[1672561082149,20.0,9.7754,9.7607,40.0]
[1672561082150,76.81,9.7753,9.7612,307.9]
[1672561082362,20.0,9.7752,9.7613,384.82]
[1672561082572,76.81,9.7751,9.7613,384.82]
[1672561082786,60.0,9.775,9.7614,40.0]
[1672561083002,40.0,9.7748,9.7616,40.0]
[1672561083194,96.81,9.7747,9.7617,76.91]
[1672561083405,40.0,9.7746,9.7618,40.0]
[1672561083611,96.81,9.7745,9.7619,76.91]
[1672561083826,40.0,9.7744,9.762,40.0]
[1672561084045,40.0,9.7742,9.7622,40.0]
[1672561084263,76.82,9.7741,9.7623,76.91]
[1672561084476,40.0,9.7739,9.7624,40.0]
[1672561084691,96.82,9.7738,9.7626,40.0]
[1672561084875,20.0,9.7737,9.7627,76.91]
[1672561085085,40.0,9.7735,9.7628,40.0]
[1672561085401,40.0,9.7733,9.763,40.0]
[1672561085614,40.0,9.7731,9.7632,40.0]
[1672561085822,96.83,9.773,9.7633,76.9]
[1672561086041,40.0,9.7729,9.7633,76.9]
[1672561086259,96.83,9.7728,9.7634,205.9478]
[1672561086460,96.83,9.7728,9.7636,40.0]
[1672561086461,40.0,9.7727,9.7636,40.0]
[1672561086670,96.83,9.7726,9.7637,76.9]
[1672561086877,110.29595083,9.7726,9.7638,40.0]
[1672561087090,110.29595083,9.7726,9.7639,76.9]
[1672561087418,13.46595083,9.7725,9.764,40.0]
[1672561087628,40.0,9.7723,9.764,40.0]
[1672561087945,76.83,9.7724,9.764,40.0]
[1672561088139,26.93190166,9.7722,9.764,40.0]
[1672561088342,13.46595083,9.7722,9.764,40.0]
[1672561089083,13.46595083,9.7722,9.7642,40.0]
[1672561089505,13.46595083,9.7722,9.7644,40.0]
[1672561089835,13.46595083,9.7722,9.764,40.0]
[1672561089836,13.46595083,9.7722,9.7645,76.89]
[1672561090043,40.0,9.7721,9.7639,76.9]
[1672561090465,40.0,9.7719,9.7639,76.9]
[1672561090782,13.46595083,9.7718,9.7641,40.0]
[1672561090988,13.46595083,9.7718,9.7643,40.0]
[1672561091415,20.0,9.7726,9.7643,347.9]
[1672561091636,20.0,9.7726,9.7645,40.0]
[1672561091827,20.0,9.7729,9.7647,40.0]
[1672561092037,20.0,9.7729,9.7648,76.89]
[1672561092242,20.0,9.7729,9.7649,40.0]
[1672561092993,13.46595083,9.7728,9.765,76.89]
[1672561093216,20.0,9.7727,9.7648,22.7551]
[1672561093516,40.0,9.7726,9.7648,22.7551]
[1672561093713,53.46595083,9.7726,9.7648,22.7551]
[1672561093919,40.0,9.7724,9.7648,22.7551]
[1672561094342,40.0,9.7722,9.7648,22.7551]
[1672561094556,76.83,9.7721,9.7648,22.7551]
[1672561094778,40.0,9.772,9.7648,22.7551]
[1672561096044,40.0,9.7718,9.7648,22.7551]
[1672561096237,76.84,9.7717,9.7648,22.7551]
[1672561096442,40.0,9.7716,9.7648,22.7551]
[1672561100350,40.0,9.7718,9.7648,22.7551]
[1672561102982,40.0,9.7716,9.7648,22.7551]
[1672561105605,40.0,9.7714,9.7648,22.7551]
[1672561105817,40.0,9.7712,9.7648,22.7551]
[1672561106018,76.84,9.7713,9.7648,22.7551]
[1672561106230,40.0,9.7718,9.7648,22.7551]
[1672561106439,76.83,9.7728,9.7648,22.7551]
[1672561106853,20.0,9.7727,9.7648,22.7551]
[1672561107179,20.0,9.7724,9.765,347.9]
[1672561107394,40.0,9.7726,9.7649,101.0549]
[1672561107587,20.0,9.7725,9.7649,101.0549]
[1672561108013,20.0,9.7725,9.7649,24.1649]
[1672561109068,40.0,9.7724,9.7649,24.1649]
[1672561109495,53.46595083,9.7724,9.7649,24.1649]
[1672561109684,130.29595083,9.7724,9.7649,24.1649]
[1672561113061,116.83,9.7724,9.7649,24.1649]
[1672561113256,13.46595083,9.7723,9.7649,24.1649]
[1672561113470,40.0,9.7721,9.7649,24.1649]
[1672561113680,40.0,9.7719,9.7649,24.1649]
[1672561113891,76.84,9.7718,9.7649,24.1649]
[1672561114115,40.0,9.7717,9.7649,24.1649]
[1672561114645,40.0,9.7715,9.7649,24.1649]
[1672561120972,40.0,9.7713,9.7649,24.1649]
[1672561122938,37.5,9.7711,9.7649,24.1649]
[1672561123250,40.0,9.7709,9.7649,24.1649]
[1672561123459,40.0,9.7707,9.7649,24.1649]
[1672561123671,40.0,9.7705,9.7649,24.1649]
[1672561123903,76.85,9.7704,9.7649,24.1649]
[1672561124094,40.0,9.7703,9.7649,24.1649]
[1672561124304,40.0,9.7701,9.7649,24.1649]
[1672561124740,40.0,9.7699,9.7649,24.1649]
[1672561125998,76.85,9.7702,9.7649,24.1649]
[1672561126216,76.84,9.7706,9.7649,24.1649]
[1672561126415,40.0,9.7705,9.7649,24.1649]
[1672561129796,76.84,9.7712,9.7649,24.1649]
[1672561130312,76.84,9.7714,9.7649,24.1649]
[1672561130521,152.75479248,9.7715,9.7649,24.1649]
[1672561130942,152.75479248,9.7715,9.765,40.0]
[1672561132206,152.75479248,9.7714,9.7649,24.1649]
[1672561133357,152.75479248,9.7723,9.7649,24.1649]
[1672561133570,20.0,9.7725,9.7649,24.1649]
[1672561133778,249.58479248,9.7727,9.765,40.0]
[1672561133995,20.0,9.7727,9.7651,307.9]
[1672561134302,20.0,9.7729,9.7653,307.9]
[1672561134516,20.0,9.7729,9.7656,40.0]
[1672561134732,20.0,9.7729,9.7658,307.9]
[1672561135049,20.0,9.7729,9.7661,40.0]
[1672561135242,20.0,9.7729,9.7663,307.9]
[1672561135447,20.0,9.7729,9.7662,76.88]
[1672561135448,20.0,9.7729,9.7666,40.0]
[1672561135664,20.0,9.7729,9.7668,307.9]
[1672561135865,20.0,9.7729,9.7671,40.0]
[1672561136071,20.0,9.7729,9.7705,16.27227]
[1672561136497,20.0,9.7759,9.7705,16.27227]
[1672561136711,40.0,9.7758,9.7705,16.27227]
[1672561136934,20.0,9.7757,9.7705,11.14970206]
[1672561137136,40.0,9.7756,9.7705,11.14970206]
[1672561137347,20.0,9.7755,9.7705,11.14970206]
[1672561137552,20.0,9.7757,9.7705,11.14970206]
[1672561137971,20.0,9.7767,9.7705,6.02713412]
[1672561138188,40.0,9.7766,9.7705,6.02713412]
[1672561138399,96.8,9.7765,9.7705,6.02713412]
[1672561138605,40.0,9.7764,9.7705,6.02713412]
[1672561138819,96.8,9.7765,9.7705,6.02713412]
[1672561138820,40.0,9.7762,9.7705,6.02713412]
[1672561139032,96.8,9.7761,9.7705,0.90456618]
[1672561139562,40.0,9.776,9.7705,0.90456618]
[1672561139755,20.0,9.7759,9.7705,0.90456618]
[1672561139964,20.0,9.7759,9.7685,40.0]
[1672561140387,20.0,9.7766,9.7685,40.0]
[1672561140815,116.8,9.7765,9.7687,40.0]
[1672561141025,20.0,9.7764,9.7688,76.86]
[1672561141239,20.0,9.7764,9.7687,40.0]
[1672561141977,40.0,9.7765,9.7687,40.0]
[1672561142189,20.0,9.7764,9.7684,384.76]
[1672561142396,20.0,9.7766,9.7685,40.0]
[1672561142928,40.0,9.7765,9.7684,384.76]
[1672561143139,20.0,9.7766,9.768,347.9]
[1672561143140,20.0,9.7764,9.768,347.9]
[1672561143342,101.2797,9.7765,9.7682,307.9]
[1672561143560,20.0,9.7764,9.7683,40.0]
[1672561144485,20.0,9.7764,9.7684,384.76]
[1672561145030,20.0,9.7764,9.7685,34.87627836]
[1672561145234,20.0,9.7764,9.7686,76.86]
[1672561145447,20.0,9.7764,9.7687,40.0]
[1672561145665,20.0,9.7764,9.7688,76.86]
[1672561145852,20.0,9.7764,9.7689,40.0]
[1672561146063,20.0,9.7764,9.7691,347.9]
[1672561146276,20.0,9.7764,9.7694,40.0]
[1672561147017,20.0,9.7764,9.7694,34.87685528]
[1672561147973,20.0,9.7764,9.7694,29.75371056]
[1672561148579,20.0,9.7764,9.7696,40.0]
[1672561149012,20.0,9.7764,9.7695,384.75]
[1672561149229,20.0,9.7764,9.7695,302.77685528]
[1672561149436,20.0,9.7764,9.7696,40.0]
[1672561150160,20.0,9.7764,9.7696,34.87690772]
[1672561151000,20.0,9.7764,9.7696,29.75386788]
[1672561152064,20.0,9.7764,9.7696,24.63082804]
[1672561152619,20.0,9.7764,9.7693,40.0]
[1672561154917,20.0,9.7764,9.7693,34.87680284]
[1672561155670,20.0,9.7764,9.7692,302.77685528]
[1672561155855,20.0,9.7764,9.7682,302.77685528]
[1672561156166,20.0,9.7764,9.769,40.0]
[1672561156380,20.0,9.7764,9.7692,40.0]
[1672561157437,20.0,9.7764,9.7692,342.77685528]
[1672561158383,20.0,9.7764,9.7689,302.77685528]
[1672561158594,20.0,9.7764,9.7692,40.0]
[1672561159236,20.0,9.7764,9.7692,34.87675039]
[1672561159971,20.0,9.7764,9.7692,29.75350078]
[1672561162181,20.0,9.7764,9.7692,24.63025117]
[1672561163016,20.0,9.7764,9.7692,19.50700156]
[1672561164052,20.0,9.7764,9.7692,14.38375195]
[1672561164596,20.0,9.7764,9.769,302.77685528]
[1672561164800,20.0,9.7764,9.7686,40.0]
[1672561165011,20.0,9.7764,9.7689,40.0]
[1672561165221,20.0,9.7764,9.7692,34.87675039]
[1672561168906,20.0,9.7764,9.7691,302.77685528]
[1672561169116,20.0,9.7764,9.7677,40.0]
[1672561169430,40.0,9.7762,9.768,40.0]
[1672561169636,20.0,9.7761,9.7682,302.77685528]
[1672561169845,20.0,9.7761,9.7684,302.77685528]
[1672561170076,20.0,9.7761,9.7686,342.77685528]
[1672561170389,20.0,9.7761,9.7686,302.77685528]
[1672561170806,20.0,9.7761,9.7687,40.0]
[1672561171006,20.0,9.7762,9.7687,40.0]
[1672561172365,20.0,9.7762,9.769,40.0]
[1672561172677,20.0,9.7762,9.7693,40.0]
[1672561173101,20.0,9.7762,9.7696,40.0]
[1672561174161,20.0,9.7762,9.7695,302.77685528]
[1672561174692,20.0,9.7762,9.7693,40.0]
[1672561174693,20.0,9.7762,9.7697,302.77685528]
[1672561175642,20.0,9.7762,9.7696,40.0]
[1672561175839,20.0,9.7762,9.7698,40.0]
[1672561178374,20.0,9.7762,9.7698,342.77685528]
[1672561179013,20.0,9.7762,9.7698,302.77685528]
[1672561179228,20.0,9.7762,9.7695,302.77685528]
[1672561179537,40.0,9.7761,9.7697,302.77685528]
[1672561179750,20.0,9.776,9.7697,302.77685528]
[1672561180373,20.0,9.776,9.7679,302.77685528]
[1672561180582,20.0,9.7762,9.7682,40.0]
[1672561180795,20.0,9.7762,9.7685,40.0]
[1672561181119,20.0,9.7762,9.7687,40.0]
[1672561181865,20.0,9.7762,9.7686,302.77685528]
[1672561182169,20.0,9.7762,9.7685,40.0]
[1672561182380,20.0,9.7762,9.7687,40.0]
[1672561183010,20.0,9.7762,9.7686,302.77685528]
[1672561183426,40.0,9.7761,9.7684,302.77685528]
[1672561183633,20.0,9.776,9.7686,302.77685528]
[1672561183944,20.0,9.776,9.7687,40.0]
[1672561184166,20.0,9.7762,9.7689,302.77685528]
[1672561184779,20.0,9.7762,9.7691,302.77685528]
[1672561185726,20.0,9.7762,9.7683,40.0]